bitfinex/quotes_ETHUSD_20241023
["timestamp","ask_amount","ask_price","bid_price","bid_amount"]
[1729706960570,0.01,2476.2,2476.1,4.0386]
[1729706960898,0.01,2476.6,2476.2,4.03839]
[1729706961063,0.01,2476.6,2476.4,4.03809]
[1729706961455,0.01,2476.6,2476.5,4.03795]
[1729706962072,4.03676,2477.3,2476.5,4.03795]
[1729706962073,0.19094636,2477.6,2477.1,4.03697]
[1729706962273,0.01,2477.3,2477.2,4.03669]
[1729706962689,0.1207432,2477.6,2476.4,3.0]
[1729706962863,0.1207432,2477.6,2477.5,4.03632]
[1729706963063,0.1207432,2477.6,2477.5,4.11703537]
[1729706963478,0.1207432,2477.6,2477.5,4.03632]
[1729706963676,0.1207432,2477.6,2477.5,4.11703161]
[1729706964305,0.0482,2477.8,2477.7,4.036]
[1729706964510,0.01,2479.6,2477.7,4.44423525]
[1729706964804,1.5808,2479.7,2477.7,4.44423525]
[1729706964805,0.01,2478.5,2477.9,4.03564]
[1729706965007,0.01,2479.0,2477.8,4.03582]
[1729706965216,0.01,2479.0,2478.8,4.03409]
[1729706965501,0.01,2479.0,2478.0,0.01]
[1729706965502,0.01,2479.2,2478.0,0.01]
[1729706965718,4.03332,2479.4,2478.0,0.01]
[1729706965719,4.04331,2479.4,2478.9,4.03393]
[1729706966008,0.414331,2479.4,2479.0,4.03375]
[1729706966213,0.01,2478.8,2478.7,4.03429]
[1729706966376,0.404331,2479.4,2479.0,4.03376]
[1729706966567,0.01,2479.0,2478.9,4.03394]
[1729706966769,0.01,2479.2,2478.9,4.03394]
[1729706967076,0.01,2479.2,2478.1,1.527]
[1729706967265,0.01,2478.8,2478.1,1.527]
[1729706967466,1.5808,2479.3,2478.3,4.03502]
[1729706967467,0.01,2478.5,2478.3,4.03502]
[1729706967803,0.01,2478.5,2478.2,4.03514]
[1729706967804,0.01,2478.5,2478.2,4.03508]
[1729706968193,0.01,2478.5,2478.3,4.03493]
[1729706968512,0.01,2478.5,2478.4,4.03486]
[1729706968863,4.03423,2478.8,2478.4,0.08068466]
[1729706969064,0.01,2478.5,2478.4,4.03486]
[1729706969269,4.04377,2479.1,2478.5,4.03465]
[1729706969496,0.01,2478.7,2478.6,4.11518687]
[1729706969697,0.01,2478.8,2478.7,4.03437]
[1729706970023,0.01,2478.8,2478.6,4.03452]
[1729706970480,0.01,2478.8,2478.4,4.03475]
[1729706970806,4.04372,2479.1,2478.5,4.03469]
[1729706971010,0.01,2478.8,2478.5,4.03469]
[1729706971209,0.01,2479.1,2478.8,4.03409]
[1729706971409,0.01,2479.1,2478.8,8.0682]
[1729706971581,0.01,2479.1,2478.9,4.03397]
[1729706971982,0.01,2478.9,2478.8,4.03409]
[1729706972293,0.01,2478.9,2478.6,8.06885]
[1729706972495,0.05286029,2478.9,2478.6,8.06885]
[1729706972883,0.05286029,2478.9,2478.6,4.03442]
[1729706973090,0.05286029,2478.9,2478.7,4.03436]
[1729706973997,0.04286029,2478.9,2478.8,4.03421]
[1729706974806,0.01,2479.0,2478.9,4.03404]
[1729706974997,0.01,2479.0,2478.7,4.03436]
[1729706975198,0.01,2479.0,2478.7,8.06862]
[1729706975398,0.01,2479.0,2478.9,4.03404]
[1729706975982,0.01,2479.0,2478.1,3.0]
[1729706976180,0.01,2479.0,2478.7,4.03432]
[1729706976475,0.01,2479.0,2478.7,4.03428]
[1729706977213,4.03323,2479.4,2478.6,4.03453]
[1729706977214,0.01,2478.8,2478.6,4.03453]
[1729706977418,0.01,2478.8,2478.7,4.03437]
[1729706977576,0.01,2478.8,2478.1,3.0]
[1729706977778,0.01,2478.5,2477.8,4.03583]
[1729706978007,0.01,2478.5,2477.7,1.527]
[1729706978219,0.01,2478.5,2478.1,4.03526]
[1729706978397,0.01,2478.8,2478.2,4.03504]
[1729706978618,0.01,2478.5,2478.3,4.035]
[1729706978917,0.01,2478.8,2478.7,4.03437]
[1729706979612,0.01,2478.8,2478.1,4.03531]
[1729706979954,0.01,2478.8,2478.7,4.03437]
[1729706980153,1.6533,2479.4,2478.1,7.03523]
[1729706980154,0.01,2478.6,2478.1,7.03523]
[1729706980358,0.01,2478.6,2477.4,0.01]
[1729706980359,0.01,2478.1,2477.2,6.79059212]
[1729706980519,0.01,2478.1,2477.7,4.0359]
[1729706980849,0.01,2478.1,2477.9,4.03565]
[1729706981055,0.01,2478.1,2477.9,8.07124]
[1729706981212,0.01,2478.1,2477.5,4.03621]
[1729706981420,0.01,2477.7,2477.3,4.03654]
[1729706981652,0.01,2477.5,2477.1,4.03687]
[1729706981853,0.01,2477.5,2477.2,4.0367]
[1729706981854,0.04264814,2477.4,2477.2,4.0367]
[1729706982212,0.04264814,2477.4,2476.8,1.6463]
[1729706982527,0.01,2477.1,2476.2,1.5611]
[1729706982726,1.5589,2477.3,2477.1,4.03682]
[1729706982727,0.05229666,2477.3,2477.1,4.03682]
[1729706983048,1.5589,2477.7,2477.2,4.1175358]
[1729706983049,0.01,2477.5,2477.2,4.1175358]
[1729706983256,0.01,2477.5,2477.3,4.03664]
[1729706983462,0.01,2477.5,2477.4,4.03648]
[1729706983748,0.01,2477.5,2477.2,4.03681]
[1729706983749,0.01,2477.5,2477.3,4.03663]
[1729706983949,0.01,2477.5,2476.5,3.0]
[1729706984160,0.01,2477.5,2477.1,4.03694]
[1729706984313,0.01,2477.5,2477.2,4.03671]
[1729706984510,0.01,2477.5,2477.2,0.08072691]
[1729706985416,0.01,2477.5,2477.2,4.03679]
[1729706985653,0.01,2477.6,2477.3,4.03654]
[1729706985855,0.01,2477.4,2477.1,4.03686]
[1729706986218,0.01,2477.4,2477.2,4.0368]
[1729706987051,0.01,2477.4,2477.3,4.03656]
[1729706987413,0.05229666,2477.4,2477.3,4.03656]
[1729706987658,0.04229666,2477.4,2477.3,4.11728711]
[1729706987810,0.04229666,2477.4,2477.3,4.03656]
[1729706987811,0.01,2477.4,2477.3,4.03656]
[1729706988519,0.05217062,2477.4,2477.3,4.03656]
[1729706989023,0.04217062,2477.4,2477.3,4.03656]
[1729706989209,0.04217062,2477.4,2477.3,4.11728175]
[1729706989422,1.5422,2478.2,2478.0,4.03541]
[1729706989423,0.01,2478.2,2478.0,4.03541]
[1729706989949,0.03872819,2478.1,2478.0,4.03541]
[1729706990524,0.01,2477.8,2477.5,4.03624]
[1729706990965,0.03899371,2477.7,2477.3,8.07303]
[1729706991117,0.03899371,2477.7,2477.4,4.03646]
[1729706991323,0.01,2477.8,2477.4,4.03641]
[1729706991523,4.03513,2478.3,2477.4,4.03641]
[1729706991524,0.01,2477.5,2477.4,4.03641]
[1729706991830,0.04889415,2477.5,2477.4,4.03641]
[1729706992438,0.03889415,2477.5,2477.4,4.03641]
[1729706992753,0.01,2477.8,2477.2,4.03681]
[1729706992972,0.01,2478.0,2477.9,4.03567]
[1729706993269,0.01,2478.0,2477.8,4.0358]
[1729706994061,0.01,2478.0,2477.9,4.03567]
[1729706995360,1.5422,2478.6,2476.9,9.39415459]
[1729706995361,0.01,2477.8,2476.9,9.39415459]
[1729706995560,0.01,2477.8,2477.7,4.036]
[1729706996358,0.01,2478.0,2477.9,4.03567]
[1729706997069,0.04896716,2478.0,2477.9,4.03567]
[1729706997235,0.01,2477.8,2477.7,4.036]
[1729706997565,0.01,2477.7,2477.5,4.03632]
[1729706997769,0.01,2477.7,2477.6,4.03616]
[1729706997925,0.01,2478.4,2477.6,4.03616]
[1729706997926,0.01,2478.0,2477.8,4.0358]
[1729706998121,0.01,2478.0,2477.8,4.03574]
[1729706998352,0.01,2478.0,2477.9,4.03567]
[1729707000068,1.5422,2478.6,2478.2,4.03518]
[1729707000228,1.5422,2478.6,2477.7,4.036]
[1729707000429,0.01,2478.7,2478.5,4.03469]
[1729707000674,1.9304194,2479.1,2478.8,4.03421]
[1729707000675,0.01,2478.9,2478.8,4.03421]
[1729707001327,0.01,2478.9,2478.5,4.03459]
[1729707001638,0.01,2478.4,2478.3,4.035]
[1729707001969,0.01,2479.0,2478.9,4.03404]
[1729707002353,0.01,2479.2,2479.1,4.03372]
[1729707002535,1.5757,2479.6,2478.8,4.03409]
[1729707002536,0.01,2479.0,2478.8,4.03409]
[1729707002735,0.01,2479.0,2478.9,4.03404]
[1729707002964,0.03954459,2479.2,2478.6,4.03444]
[1729707002965,0.01,2478.8,2478.6,4.03444]
[1729707003466,0.03964411,2478.7,2478.6,4.03444]
[1729707003769,0.01,2478.8,2478.7,4.03437]
[1729707003967,0.01,2479.0,2478.7,4.03437]
[1729707004125,0.01,2479.0,2478.9,4.03404]
[1729707004329,0.01,2479.0,2478.7,4.03434]
[1729707004330,0.01,2479.2,2479.1,4.03372]
[1729707004964,0.01,2479.4,2479.3,4.03339]
[1729707006220,0.01,2479.4,2479.3,4.11405123]
[1729707006424,0.01,2479.4,2479.3,4.03339]
[1729707007035,4.03242,2479.9,2479.0,4.03375]
[1729707007036,0.01,2479.2,2479.0,4.03375]
[1729707007260,0.01,2479.0,2478.9,4.03396]
[1729707007629,0.01,2479.4,2479.2,4.03354]
[1729707007828,0.01,2479.1,2479.0,4.0338]
[1729707008055,0.01,2478.9,2478.8,4.03421]
[1729707008564,1.5197,2479.1,2478.9,4.03389]
[1729707008925,0.55,2479.0,2478.9,4.03389]
[1729707009565,0.55,2479.0,2478.5,4.0346]
[1729707009762,1.5197,2479.1,2479.0,4.03388]
[1729707009948,2.0697,2479.1,2479.0,4.03388]
[1729707010431,2.0697,2479.1,2478.9,4.03404]
[1729707010633,2.27667,2479.1,2478.9,4.03404]
[1729707011145,0.55,2479.0,2478.9,4.03404]
[1729707012162,0.55,2479.0,2478.8,4.0342]
[1729707012163,0.01,2478.9,2478.8,4.0342]
[1729707013259,0.55,2479.0,2478.9,4.03404]
[1729707013442,0.01,2479.1,2479.0,4.03388]
[1729707013683,0.01,2479.4,2479.3,4.03339]
[1729707014230,0.01,2479.9,2479.8,4.03258]
[1729707014592,0.1207432,2480.1,2480.0,4.03225]
[1729707014870,0.1207432,2480.1,2480.0,4.1128848]
[1729707015831,0.1207432,2480.1,2480.0,4.03225]
[1729707017135,0.01,2481.1,2480.1,7.03209]
[1729707017374,1.5435,2481.6,2481.4,4.02983]
[1729707017790,0.01,2481.3,2481.2,4.03015]
[1729707018071,0.01,2481.4,2481.0,4.03053]
[1729707018234,1.5435,2481.6,2481.0,4.03053]
[1729707018235,0.01,2481.1,2481.0,4.03053]
[1729707018429,0.01,2482.2,2481.0,4.03053]
[1729707018430,4.02894,2482.1,2481.5,4.02982]
[1729707018629,0.01,2481.5,2481.2,1.5774]
[1729707018935,0.01,2481.6,2481.4,8.05982]
[1729707019177,0.01,2481.6,2481.5,4.02982]
[1729707019331,0.01,2481.6,2480.9,3.0]
[1729707019332,0.01,2481.8,2481.7,4.02938]
[1729707019670,4.02846,2482.4,2481.8,4.02925]
[1729707019970,0.01,2481.6,2481.5,4.02973]
[1729707020280,0.01,2481.6,2480.9,7.03077]
[1729707020487,0.01,2481.6,2481.5,4.02982]
[1729707020638,0.01,2481.8,2481.7,4.02945]
[1729707021265,0.01,2481.8,2481.7,4.11003126]
[1729707021442,0.01,2481.8,2481.7,4.02945]
[1729707021646,0.01,2481.6,2481.3,4.03004]
[1729707021849,0.01,2481.5,2481.3,4.03002]
[1729707022377,0.55,2481.6,2481.4,4.02998]
[1729707022601,0.01,2481.9,2481.4,0.0805969]
[1729707022738,0.01,2481.9,2481.7,4.02948]
[1729707023078,0.07005779,2482.7,2482.1,4.02871]
[1729707023079,3.07005779,2482.7,2482.1,4.02871]
[1729707023287,5.59214,2483.0,2482.2,4.02867]
[1729707023288,0.01,2482.3,2482.2,4.02867]
[1729707023586,5.61214,2483.0,2482.0,0.08056978]
[1729707023587,5.60214,2483.0,2482.3,4.0284]
[1729707023782,0.560214,2482.9,2482.6,4.02802]
[1729707023941,1.5647,2483.0,2482.6,4.02802]
[1729707024276,1.5647,2483.0,2482.4,4.02828]
[1729707024277,0.01,2482.6,2482.4,4.02828]
[1729707024453,0.01,2482.3,2482.2,4.02862]
[1729707024655,0.01,2482.2,2481.7,4.02949]
[1729707024972,0.01,2482.2,2482.1,4.02884]
[1729707025173,5.59212,2483.0,2481.8,7.02932]
[1729707025174,4.03755,2482.9,2481.8,7.02932]
[1729707025386,0.01,2481.9,2481.8,4.02922]
[1729707025588,0.01,2481.5,2481.4,4.02998]
[1729707025943,0.01,2482.0,2481.4,4.02998]
[1729707026185,0.01,2481.6,2481.5,4.02975]
[1729707026381,0.01,2481.6,2481.4,4.02998]
[1729707026569,0.01,2482.0,2481.5,4.0298]
[1729707026740,0.01,2482.0,2481.4,4.02998]
[1729707026741,0.01,2481.6,2481.4,4.02986]
[1729707026941,0.01,2481.4,2481.2,4.03018]
[1729707027389,0.01,2481.4,2480.8,3.0]
[1729707027390,0.01,2481.1,2481.0,4.03051]
[1729707027545,0.01,2481.3,2481.2,4.03024]
[1729707027743,0.01,2481.6,2480.4,9.1494207]
[1729707027939,0.55,2481.7,2480.4,9.1494207]
[1729707027940,0.55,2481.7,2481.6,4.02965]
[1729707028583,1.5747,2482.2,2481.6,4.11023806]
[1729707028784,1.5747,2482.2,2481.9,4.02905]
[1729707028957,0.01,2482.0,2481.9,4.02905]
[1729707029281,0.01,2481.8,2481.6,4.02954]
[1729707029438,0.01,2481.5,2481.2,4.03021]
[1729707029642,0.01,2481.5,2481.4,4.02998]
[1729707030081,0.01,2481.5,2481.1,4.03031]
[1729707030298,0.01,2481.5,2480.8,3.0]
[1729707030461,0.01,2481.5,2481.4,4.02998]
[1729707030782,0.04285158,2481.5,2481.4,4.02998]
[1729707030989,0.01,2481.9,2481.8,4.02933]
[1729707031304,0.56,2482.1,2482.0,4.029]
[1729707031447,0.01,2483.1,2482.2,4.02868]
[1729707031448,0.01,2482.3,2482.2,4.02868]
[1729707032048,6.6532407,2483.2,2482.6,4.0279]
[1729707032049,10.6703807,2483.2,2482.6,4.0279]
[1729707032377,0.01,2482.7,2482.5,4.02807]
[1729707032577,0.01,2482.9,2482.4,4.02833]
[1729707032757,0.01,2482.5,2482.4,4.02833]
[1729707033361,0.01,2483.0,2482.8,4.02771]
[1729707033564,0.01,2482.6,2482.5,4.02809]
[1729707033855,0.01,2482.6,2482.5,4.02819]
[1729707034367,4.02684,2483.4,2482.7,4.02787]
[1729707034578,0.01,2482.9,2482.8,4.02757]
[1729707034749,3.0,2483.3,2482.8,4.02757]
[1729707034951,7.0269,2483.3,2482.8,4.02757]
[1729707035152,3.0,2483.3,2482.7,4.02787]
[1729707035352,0.01,2482.8,2482.7,4.02787]
[1729707035553,0.01,2482.8,2481.8,1.6234]
[1729707035554,0.01,2481.9,2481.8,7.02933]
[1729707035790,4.02818,2482.6,2481.9,4.02902]
[1729707035791,0.01,2482.4,2481.9,4.02902]
[1729707035992,0.01,2482.4,2481.4,1.6525]
[1729707035993,0.56,2482.6,2482.2,4.02853]
[1729707036256,0.01,2482.5,2482.3,4.02843]
[1729707036404,0.01,2482.3,2482.2,4.02868]
[1729707037610,4.02778,2482.8,2481.5,7.0298]
[1729707037611,0.01,2482.6,2482.3,4.02838]
[1729707037775,1.5403,2483.3,2482.4,0.08056674]
[1729707037961,1.5403,2483.3,2483.0,4.02724]
[1729707038160,0.07003404,2483.8,2483.3,4.02687]
[1729707038161,5.63651404,2483.8,2483.3,4.02687]
[1729707038420,0.01,2483.4,2483.3,4.02687]
[1729707038561,5.63644404,2483.8,2483.2,4.02705]
[1729707038767,0.01,2483.3,2483.1,4.02721]
[1729707039083,0.01,2483.3,2483.0,4.0273]
[1729707039084,0.01,2483.1,2483.0,4.0273]
[1729707040517,0.01,2483.1,2482.9,4.02745]
[1729707040664,0.01,2483.1,2483.0,4.02738]
[1729707040865,0.01,2483.1,2482.8,4.0277]
[1729707041071,0.01,2483.1,2482.7,4.02774]
[1729707041371,4.57697,2483.3,2482.7,4.02774]
[1729707041604,0.01,2482.6,2482.5,4.02819]
[1729707041779,0.01,2482.8,2482.5,4.02819]
[1729707041999,0.01,2482.6,2482.5,4.02819]
[1729707042401,0.55,2482.9,2482.8,4.02771]
[1729707042587,0.55,2482.9,2482.1,4.49068348]
[1729707042588,2.1669,2482.9,2481.4,0.01]
[1729707042918,0.01,2481.7,2481.6,4.02965]
[1729707043083,0.55,2482.0,2481.6,0.08058925]
[1729707043287,0.55,2482.0,2481.9,4.02917]
[1729707043469,4.49068348,2482.4,2481.9,4.02907]
[1729707043672,4.49068348,2482.4,2482.1,4.02884]
[1729707043673,0.01,2482.2,2482.1,4.02884]
[1729707043884,0.55,2482.5,2482.1,4.02872]
[1729707044086,0.55,2482.5,2482.2,4.02867]
[1729707044289,0.56,2482.6,2482.4,4.02828]
[1729707044488,0.01,2482.8,2482.4,4.0283]
[1729707044723,8.51814348,2483.0,2482.4,4.02824]
[1729707044910,0.01,2482.5,2482.4,4.02824]
[1729707045478,0.01,2482.5,2482.0,4.029]
[1729707045479,0.01,2483.1,2482.0,0.01]
[1729707045803,0.01,2482.9,2482.7,4.02776]
[1729707045970,8.51769348,2483.3,2482.7,4.02776]
[1729707046174,8.51769348,2483.3,2482.7,8.05555]
[1729707046476,0.01,2482.9,2482.7,4.02776]
[1729707046679,0.01,2482.9,2482.6,4.02802]
[1729707046880,4.58706,2483.2,2482.5,4.02819]
[1729707047106,0.01,2482.6,2482.5,4.02819]
[1729707047415,0.55,2483.2,2482.7,4.02786]
[1729707047713,0.01,2482.9,2482.7,4.02786]
[1729707048214,0.01,2482.9,2482.7,4.02779]
[1729707048825,0.01,2482.9,2482.7,8.05558]
[1729707048991,0.01,2482.9,2482.8,4.02771]
[1729707049328,0.55,2483.2,2482.8,4.02771]
[1729707049329,0.01,2483.0,2482.8,4.02771]
[1729707049679,0.01,2483.0,2482.8,4.02762]
[1729707050209,0.55,2483.2,2482.9,4.02754]
[1729707050407,0.55,2483.2,2482.8,4.02762]
[1729707050408,0.01,2483.0,2482.8,4.02762]
[1729707051425,0.01,2483.0,2482.7,4.02785]
[1729707051627,0.01,2482.8,2482.7,4.02785]
[1729707051931,0.01,2482.8,2482.6,4.02793]
[1729707052431,0.01,2482.8,2482.6,4.02803]
[1729707052643,5.04068348,2482.7,2481.8,1.5625]
[1729707052931,0.01,2482.2,2482.1,4.02881]
[1729707053138,0.55,2482.7,2482.6,4.02803]
[1729707053298,0.55,2482.7,2481.6,4.02959]
[1729707053299,0.55,2482.5,2481.7,0.01]
[1729707053502,0.55,2482.5,2482.3,4.02838]
[1729707053812,0.01,2482.8,2482.7,4.02787]
[1729707054015,0.56,2482.8,2482.7,4.02787]
[1729707054389,0.55,2482.8,2482.7,4.02787]
[1729707055550,0.55,2482.8,2482.6,4.02795]
[1729707055703,0.55,2482.8,2482.4,4.02824]
[1729707055892,0.01,2482.6,2482.4,4.02824]
[1729707056093,0.01,2482.6,2482.5,4.02819]
[1729707056309,0.01,2482.9,2482.8,4.02771]
[1729707056505,0.01,2483.1,2482.8,4.02755]
[1729707056825,0.01,2482.9,2482.8,4.02755]
[1729707057231,0.01,2482.9,2482.8,4.10825317]
[1729707057398,4.49068348,2483.2,2483.0,4.02738]
[1729707057399,0.01,2483.1,2483.0,4.02738]
[1729707057603,0.56,2483.1,2482.9,4.02751]
[1729707057831,0.56,2483.1,2482.9,4.02743]
[1729707058134,0.01,2483.1,2482.9,4.02743]
[1729707058317,0.01,2483.1,2483.0,4.02738]
[1729707058829,0.01,2483.1,2482.9,4.02743]
[1729707059127,0.01,2483.1,2483.0,4.02738]
[1729707059534,0.01,2483.1,2482.9,4.02743]
[1729707059840,0.01,2482.8,2482.3,3.0]
[1729707060148,0.01,2482.6,2481.9,1.6216]
[1729707060431,0.01,2482.8,2482.5,4.0281]
[1729707060590,0.01,2482.8,2482.4,8.0566]
[1729707060787,0.55,2482.6,2482.5,4.02817]
[1729707061253,0.62771204,2482.6,2482.5,4.02817]
[1729707062023,0.63771204,2482.6,2482.3,4.02851]
[1729707062205,0.55,2482.6,2482.4,4.02824]
[1729707062406,0.55,2482.6,2482.5,4.02819]
[1729707062822,0.56,2482.6,2482.5,4.02819]
[1729707063010,0.55,2482.6,2482.5,4.02819]
[1729707063206,0.56,2482.6,2482.5,0.08055678]
[1729707063411,0.01,2482.2,2481.8,4.86607459]
[1729707063652,0.01,2482.2,2481.7,1.25513189]
[1729707063653,0.01,2482.2,2481.9,0.08057491]
[1729707063821,0.01,2482.2,2482.1,4.02884]
[1729707064346,0.01,2482.2,2482.0,4.02893]
[1729707064553,0.01,2482.2,2482.1,4.02884]
[1729707064726,0.01,2482.2,2481.7,0.83675459]
[1729707064915,0.01,2482.0,2481.8,4.02931]
[1729707065108,0.01,2482.0,2481.9,4.02917]
[1729707065439,0.01,2482.0,2481.9,0.08057311]
[1729707065610,0.01,2482.0,2481.8,4.02923]
[1729707066015,6.15128348,2482.6,2481.8,0.702923]
[1729707066016,0.01,2482.6,2481.8,0.702923]
[1729707066321,0.01,2482.7,2482.4,4.02834]
[1729707066475,5.56789,2483.1,2482.8,4.02767]
[1729707066476,0.01,2483.0,2482.8,4.02767]
[1729707066769,1.5406,2483.1,2482.6,4.0279]
[1729707066770,0.01,2482.7,2482.6,4.0279]
[1729707067129,0.01,2482.7,2482.6,4.02803]
[1729707067331,0.01,2483.0,2482.8,4.02768]
[1729707067766,0.56,2483.0,2482.8,4.02768]
[1729707067974,0.01,2483.0,2482.9,4.02754]
[1729707068161,0.01,2483.2,2483.1,4.02722]
[1729707068353,0.01,2483.2,2483.0,4.02735]
[1729707068540,0.01,2483.2,2483.1,4.02722]
[1729707069183,0.01,2483.2,2483.0,4.02737]
[1729707069384,0.01,2483.0,2482.7,4.02773]
[1729707069542,0.01,2483.0,2482.9,4.02754]
[1729707069993,0.01,2483.2,2483.1,4.02722]
[1729707070360,0.08760582,2483.2,2483.1,4.02722]
[1729707070686,0.01,2483.2,2483.1,4.02722]
[1729707070884,0.01,2483.0,2482.3,2.87613189]
[1729707071183,0.01,2483.0,2482.7,4.02779]
[1729707071382,0.01,2483.0,2482.2,4.86533459]
[1729707071383,0.01,2482.3,2482.2,4.86533459]
[1729707071592,0.01,2482.3,2482.2,4.10914388]
[1729707071774,0.55,2482.7,2482.2,4.10914388]
[1729707071775,0.55,2482.7,2482.5,4.02811]
[1729707071963,0.56,2482.7,2482.6,4.02803]
[1729707072863,0.01,2482.7,2482.6,4.02803]
[1729707073746,0.01,2482.7,2482.5,4.02811]
[1729707073947,0.01,2483.6,2482.6,4.10858646]
[1729707073948,0.56,2483.1,2482.6,4.10858646]
[1729707074148,0.56,2483.1,2482.3,4.02847]
[1729707074149,0.01,2483.0,2482.9,4.02754]
[1729707074359,0.01,2483.0,2482.9,4.10808411]
[1729707074744,0.01,2483.0,2482.9,4.02754]
[1729707075687,0.01,2483.0,2482.9,4.10808278]
[1729707075889,0.01,2483.3,2483.2,4.02706]
[1729707076072,0.01,2483.3,2483.2,4.10759278]
[1729707076282,4.03689,2483.3,2483.2,0.08053278]
[1729707076451,0.01,2483.1,2483.0,4.02737]
[1729707077160,0.01,2483.1,2482.7,4.02778]
[1729707077374,0.01,2483.1,2483.0,4.02738]
[1729707077685,0.55,2482.9,2482.8,4.02771]
[1729707078199,0.01,2482.7,2482.6,4.02802]
[1729707078987,0.56,2482.7,2482.6,4.02802]
[1729707079464,0.63751952,2482.7,2482.6,4.02802]
[1729707080664,0.63751952,2482.7,2482.1,4.02869]
[1729707080665,0.01,2482.2,2482.1,4.02869]
[1729707080854,0.56,2482.5,2482.1,4.02869]
[1729707081058,0.56,2482.5,2481.6,5.64386]
[1729707081059,0.01,2482.2,2481.8,4.02925]
[1729707081259,0.01,2482.2,2481.6,5.64381]
[1729707081260,0.01,2482.0,2481.7,4.02943]
[1729707081462,0.56,2482.0,2481.8,4.0293]
[1729707081788,0.62755271,2481.9,2481.8,4.0293]
[1729707082399,0.07755271,2481.9,2481.8,4.91575717]
[1729707082690,0.01,2482.2,2482.1,4.0287]
[1729707082891,0.56,2482.4,2482.2,4.02867]
[1729707083201,0.01,2482.4,2482.3,4.02852]
[1729707084266,0.01,2482.6,2482.5,4.02819]
[1729707084504,0.01,2482.8,2482.7,4.02787]
[1729707084797,0.01,2482.8,2482.7,4.10841648]
[1729707084965,0.01,2483.1,2483.0,4.02738]
[1729707085175,0.01,2483.3,2483.2,4.02706]
[1729707085378,0.01,2483.6,2483.5,4.02657]
[1729707085580,0.42054608,2483.9,2483.8,4.02608]
[1729707085777,0.01,2483.9,2483.8,4.02608]
[1729707086487,0.01,2483.9,2483.7,4.02617]
[1729707087003,0.01,2483.9,2483.7,8.05234]
[1729707087379,0.01,2483.9,2483.7,4.02617]
[1729707087887,0.01,2483.9,2483.3,4.02676]
[1729707087888,0.01,2483.5,2483.3,4.02676]
[1729707088090,0.01,2483.5,2483.4,4.02673]
[1729707088267,0.01,2483.5,2483.1,4.02708]
[1729707088604,0.01,2483.5,2482.6,1.5991]
[1729707088605,0.01,2483.0,2482.6,1.5991]
[1729707088846,0.01,2483.0,2482.6,4.02802]
[1729707088969,0.01,2482.7,2482.6,4.02802]
[1729707089167,0.56,2483.3,2482.6,4.02802]
[1729707089414,0.08726723,2482.7,2482.6,4.02802]
[1729707089570,0.01,2482.7,2482.6,4.02802]
[1729707089910,0.01,2482.7,2482.4,4.02831]
[1729707089911,0.08726723,2482.7,2482.5,0.08055029]
[1729707090080,0.08726723,2482.7,2482.4,8.05658]
[1729707090081,0.01,2482.7,2482.4,4.02827]
[1729707090284,0.07726723,2482.6,2482.4,4.02827]
[1729707090666,0.07726723,2482.6,2482.3,0.08055714]
[1729707090667,0.08726723,2482.6,2482.3,0.08055714]
[1729707090873,0.01,2482.6,2482.3,4.02845]
[1729707091110,0.07726723,2482.5,2482.3,4.02848]
[1729707091414,0.56,2482.4,2482.2,4.02859]
[1729707091623,0.56,2482.4,2482.3,4.02852]
[1729707091976,0.55,2482.4,2482.3,4.02852]
[1729707092309,0.01,2482.7,2482.6,4.02803]
[1729707092513,1.5533,2482.9,2482.8,4.02771]
[1729707092514,0.01,2482.9,2482.8,4.02771]
[1729707093404,0.01,2482.7,2482.6,4.02789]
[1729707094213,0.01,2482.9,2482.8,4.02771]
[1729707095608,0.01,2483.1,2483.0,4.02738]
[1729707096925,0.56,2483.3,2483.2,4.02706]
[1729707098649,0.01,2483.6,2483.3,4.02685]
[1729707098828,0.01,2483.6,2483.5,4.02657]
[1729707099998,0.01,2483.8,2483.5,4.02657]
[1729707100209,0.01,2483.8,2483.7,4.02625]
[1729707102563,0.01,2483.6,2483.4,4.02663]
[1729707102908,0.01,2483.6,2483.4,8.05329]
[1729707103117,0.01,2483.6,2483.5,4.02657]
[1729707104222,0.01,2483.6,2483.3,4.02688]
[1729707104467,0.01,2483.1,2483.0,4.02725]
[1729707106336,0.01,2483.1,2482.8,4.02761]
[1729707106537,0.01,2483.1,2482.5,3.0]
[1729707106538,0.01,2482.7,2482.6,4.02803]
[1729707106862,0.01,2482.7,2482.4,4.0282]
[1729707107062,0.01,2482.7,2482.5,4.02807]
[1729707107223,0.01,2482.7,2482.6,4.02803]
[1729707107425,0.62809037,2482.6,2482.5,4.02812]
[1729707107747,0.55,2482.6,2482.5,4.02812]
[1729707108064,0.62809037,2482.6,2482.5,4.02812]